bitfinex/quotes_BTCUSD_20250105
["timestamp","ask_amount","ask_price","bid_price","bid_amount"]
[1736071157701,0.10398632,97723.0,97715.0,0.003]
[1736071157909,0.30992741,97722.0,97715.0,0.003]
[1736071158156,0.204674,97716.0,97715.0,0.003]
[1736071158382,0.204674,97716.0,97715.0,0.001]
[1736071158843,0.204674,97716.0,97706.0,0.0794]
[1736071159050,0.204685,97712.0,97706.0,0.0794]
[1736071161523,0.211685,97712.0,97706.0,0.0794]
[1736071161927,0.204685,97712.0,97706.0,0.0794]
[1736071162175,0.209685,97712.0,97706.0,0.0794]
[1736071162351,0.005,97712.0,97706.0,0.0794]
[1736071164900,0.005,97712.0,97706.0,0.284093]
[1736071165094,0.005,97712.0,97707.0,0.00102337]
[1736071165292,0.005,97712.0,97708.0,0.00102333]
[1736071165495,0.005,97712.0,97709.0,0.00102333]
[1736071165699,0.005,97712.0,97707.0,0.00102334]
[1736071166056,0.204672,97718.0,97707.0,0.00102334]
[1736071166252,0.005,97712.0,97707.0,0.00102334]
[1736071167388,0.4303372,97711.0,97707.0,0.00102334]
[1736071167584,0.4303372,97711.0,97703.0,8.54e-05]
[1736071167585,0.354699,97704.0,97703.0,8.54e-05]
[1736071169048,0.361699,97704.0,97703.0,8.54e-05]
[1736071169611,0.368699,97704.0,97703.0,8.54e-05]
[1736071169813,0.45868532,97704.0,97703.0,8.54e-05]
[1736071170022,0.45968532,97704.0,97703.0,8.54e-05]
[1736071171652,0.48168532,97704.0,97703.0,8.54e-05]
[1736071171854,0.48968532,97704.0,97703.0,8.54e-05]
[1736071172002,0.48268532,97704.0,97703.0,8.54e-05]
[1736071172415,0.48968532,97704.0,97703.0,8.54e-05]
[1736071172617,0.48268532,97704.0,97703.0,8.54e-05]
[1736071172816,0.48168532,97704.0,97703.0,8.54e-05]
[1736071173013,0.48968532,97704.0,97703.0,8.54e-05]
[1736071173223,0.49168532,97704.0,97703.0,8.54e-05]
[1736071175683,0.46868532,97704.0,97703.0,8.54e-05]
[1736071177064,0.47576532,97704.0,97703.0,8.54e-05]
[1736071182181,0.364699,97704.0,97703.0,8.54e-05]
[1736071182383,0.371779,97704.0,97703.0,0.0820854]
[1736071182818,0.371779,97704.0,97703.0,8.54e-05]
[1736071185423,0.3719498,97704.0,97703.0,8.54e-05]
[1736071194716,0.3648698,97704.0,97703.0,8.54e-05]
[1736071200805,0.3648698,97704.0,97703.0,0.0784854]
[1736071205421,0.45630119,97704.0,97703.0,0.0784854]
[1736071205660,0.45630119,97704.0,97703.0,8.54e-05]
[1736071207753,0.3648698,97704.0,97703.0,8.54e-05]
[1736071210395,0.70270594,97704.0,97703.0,8.54e-05]
[1736071211551,0.8853077,97704.0,97703.0,8.54e-05]
[1736071212612,0.70270594,97704.0,97703.0,8.54e-05]
[1736071214228,2.50270594,97704.0,97703.0,8.54e-05]
[1736071215817,2.50270594,97704.0,97703.0,0.0752854]
[1736071217882,2.73177486,97704.0,97703.0,0.0752854]
[1736071219186,2.37707586,97704.0,97703.0,0.1236854]
[1736071219612,2.14800694,97704.0,97703.0,0.1236854]
[1736071221166,1.8101708,97704.0,97703.0,0.1236854]
[1736071224963,1.8101708,97704.0,97703.0,0.0752854]
[1736071226172,1.90178389,97704.0,97703.0,0.0752854]
[1736071227314,1.8101708,97704.0,97703.0,0.0752854]
[1736071231491,1.90174271,97704.0,97703.0,0.0752854]
[1736071232557,1.8101708,97704.0,97703.0,0.0752854]
[1736071236257,1.90174757,97704.0,97703.0,0.0752854]
[1736071237307,1.8101708,97704.0,97703.0,0.0752854]
[1736071240371,1.8101708,97704.0,97703.0,8.54e-05]
[1736071241142,1.8171708,97704.0,97703.0,8.54e-05]
[1736071241864,2.33836909,97704.0,97703.0,8.54e-05]
[1736071245209,1.8171708,97704.0,97703.0,8.54e-05]
[1736071246762,1.8171708,97704.0,97703.0,0.1233854]
[1736071247911,1.8101708,97704.0,97703.0,0.1233854]
[1736071257875,1.90173825,97704.0,97703.0,0.1233854]
[1736071259393,1.8101708,97704.0,97703.0,0.1233854]
[1736071267853,1.8101708,97704.0,97703.0,8.54e-05]
[1736071269530,2.14823764,97704.0,97703.0,8.54e-05]
[1736071271574,2.42522396,97704.0,97703.0,8.54e-05]
[1736071271822,2.5149215,97704.0,97703.0,8.54e-05]
[1736071273918,3.26226961,97704.0,97703.0,8.54e-05]
[1736071274551,3.18276961,97704.0,97703.0,8.54e-05]
[1736071275378,2.4354215,97704.0,97703.0,8.54e-05]
[1736071284900,2.4424215,97704.0,97703.0,8.54e-05]
[1736071289331,2.67098223,97704.0,97703.0,8.54e-05]
[1736071290519,2.4424215,97704.0,97703.0,8.54e-05]
[1736071294738,2.67098223,97704.0,97703.0,8.54e-05]
[1736071299020,2.4424215,97704.0,97703.0,8.54e-05]
[1736071301118,2.4354215,97704.0,97703.0,8.54e-05]
[1736071301302,2.4424215,97704.0,97703.0,8.54e-05]
[1736071306236,2.6252985,97704.0,97703.0,8.54e-05]
[1736071307387,2.4424215,97704.0,97703.0,8.54e-05]
[1736071314910,2.4354215,97704.0,97703.0,8.54e-05]
[1736071315152,2.71676402,97704.0,97703.0,8.54e-05]
[1736071317433,2.91581253,97704.0,97703.0,8.54e-05]
[1736071330038,3.2250735,97704.0,97703.0,8.54e-05]
[1736071332294,2.91581253,97704.0,97703.0,8.54e-05]
[1736071336420,3.2250735,97704.0,97703.0,8.54e-05]
[1736071337875,2.91581253,97704.0,97703.0,8.54e-05]
[1736071343537,3.22468383,97704.0,97703.0,8.54e-05]
[1736071344787,2.91581253,97704.0,97703.0,8.54e-05]
[1736071347738,2.91581253,97704.0,97702.0,0.00049322]
[1736071347739,0.531702,97703.0,97702.0,6.2e-07]
[1736071347976,0.63568832,97703.0,97702.0,6.2e-07]
[1736071348208,0.71114892,97703.0,97702.0,6.2e-07]
[1736071348428,0.71114892,97703.0,97688.0,8.2e-07]
[1736071348429,0.1,97689.0,97688.0,8.2e-07]
[1736071348647,0.45999721,97689.0,97688.0,8.2e-07]
[1736071348872,0.46571732,97689.0,97688.0,8.2e-07]
[1736071349117,0.48171732,97689.0,97688.0,8.2e-07]
[1736071349343,0.48871732,97689.0,97688.0,8.2e-07]
[1736071349847,0.82678416,97689.0,97688.0,8.2e-07]
[1736071350078,0.83578416,97689.0,97688.0,8.2e-07]
[1736071350290,0.85581714,97689.0,97688.0,8.2e-07]
[1736071350737,1.13020977,97689.0,97688.0,8.2e-07]
[1736071351406,1.13220977,97689.0,97688.0,8.2e-07]
[1736071351634,1.14226682,97689.0,97688.0,8.2e-07]
[1736071352267,1.14026682,97689.0,97688.0,8.2e-07]
[1736071352515,1.13126682,97689.0,97688.0,8.2e-07]
[1736071352745,1.13426682,97689.0,97688.0,8.2e-07]
[1736071352986,1.14326682,97689.0,97688.0,8.2e-07]
[1736071353386,0.86887419,97689.0,97688.0,8.2e-07]
[1736071354000,0.86587419,97689.0,97688.0,8.2e-07]
[1736071354410,0.86887419,97689.0,97688.0,8.2e-07]
[1736071355402,0.85687419,97689.0,97688.0,8.2e-07]
[1736071355624,0.85987419,97689.0,97688.0,8.2e-07]
[1736071355858,0.86887419,97689.0,97688.0,8.2e-07]
[1736071358253,0.86904499,97689.0,97688.0,8.2e-07]
[1736071360115,1.14343762,97689.0,97688.0,8.2e-07]
[1736071360488,1.14043762,97689.0,97688.0,8.2e-07]
[1736071360868,1.14343762,97689.0,97688.0,8.2e-07]
[1736071361560,0.86004499,97689.0,97688.0,8.2e-07]
[1736071361967,0.86904499,97689.0,97688.0,8.2e-07]
[1736071362178,0.95615067,97689.0,97688.0,8.2e-07]
[1736071363058,0.354748,97681.0,97680.0,0.000102]
[1736071363263,0.48173432,97681.0,97680.0,0.000102]
[1736071364338,0.82180116,97681.0,97680.0,0.000102]
[1736071364944,0.83080116,97681.0,97680.0,0.000102]
[1736071365387,0.93478748,97681.0,97680.0,0.000102]
[1736071365600,0.83080116,97681.0,97680.0,0.000102]
[1736071365800,0.83788116,97681.0,97680.0,0.000102]
[1736071366218,0.97717438,97681.0,97680.0,0.000102]
[1736071366780,0.87717438,97681.0,97680.0,0.000102]
[1736071368440,0.1,97667.0,97665.0,8.54e-05]
[1736071368651,0.1,97658.0,97640.0,0.076]
[1736071368878,0.45879232,97653.0,97640.0,0.076]
[1736071369078,0.46587232,97653.0,97640.0,0.076]
[1736071369283,0.48887232,97653.0,97640.0,0.076]
[1736071369517,0.57871875,97653.0,97640.0,0.076]
[1736071369721,0.48936651,97653.0,97640.0,0.076]
[1736071369926,0.50970486,97653.0,97652.0,0.0760854]
[1736071370161,0.50970486,97653.0,97652.0,8.54e-05]
[1736071370379,0.8477717,97653.0,97652.0,8.54e-05]
[1736071370587,0.204836,97639.0,97638.0,0.076]
[1736071370815,0.30882232,97639.0,97638.0,0.076]
[1736071371636,0.31482232,97639.0,97638.0,0.076]
[1736071373539,0.33782232,97639.0,97638.0,0.076]
[1736071373939,0.31482232,97639.0,97638.0,0.076]
[1736071374860,0.10998632,97639.0,97638.0,0.076]
[1736071375079,0.10998632,97639.0,97638.0,0.1214]
[1736071375080,0.006,97639.0,97638.0,0.1214]
[1736071376403,0.006,97639.0,97638.0,0.12136]
[1736071376626,0.006,97639.0,97638.0,0.326198]
[1736071377725,0.006,97639.0,97638.0,0.12136]
[1736071380326,0.006,97639.0,97638.0,0.12336]
[1736071380511,0.204813,97650.0,97639.0,0.0784]
[1736071380738,0.00128018,97649.0,97639.0,0.0784]
[1736071380947,0.00128018,97649.0,97645.0,0.204821]
[1736071381161,0.00049419,97653.0,97651.0,0.204809]
[1736071381393,0.00049419,97653.0,97652.0,0.1238]
[1736071382266,0.00049419,97653.0,97652.0,0.12482399]
[1736071383831,0.00449419,97653.0,97652.0,0.12482399]
[1736071384063,0.00049419,97653.0,97652.0,0.12482399]
[1736071384278,0.00249419,97653.0,97652.0,0.12482399]
[1736071384808,0.00249419,97653.0,97652.0,0.12682399]
[1736071385138,0.00049419,97653.0,97652.0,0.12682399]
[1736071385585,0.00149419,97653.0,97652.0,0.12782399]
[1736071386189,0.00149419,97653.0,97652.0,0.12582399]
[1736071386626,0.00149419,97653.0,97652.0,0.12782399]
[1736071388381,0.09126107,97679.0,97669.0,0.1266]
[1736071388592,0.204754,97678.0,97670.0,0.0802]
[1736071389335,0.023,97677.0,97670.0,0.0802]
[1736071390550,0.204756,97677.0,97670.0,0.0802]
[1736071390985,0.212756,97677.0,97670.0,0.0802]
[1736071391361,0.213756,97677.0,97670.0,0.0802]
[1736071392836,0.204756,97677.0,97670.0,0.0802]
[1736071393061,0.410512,97677.0,97670.0,0.0802]
[1736071393287,0.418512,97677.0,97670.0,0.0802]
[1736071393501,0.213756,97677.0,97670.0,0.0802]
[1736071393744,0.212756,97677.0,97670.0,0.0802]
[1736071393960,0.220756,97677.0,97670.0,0.0802]
[1736071394160,0.213756,97677.0,97670.0,0.0802]
[1736071394400,0.221756,97677.0,97670.0,0.0802]
[1736071394585,0.204756,97677.0,97670.0,0.0802]
[1736071395983,0.212756,97677.0,97670.0,0.0802]
[1736071396702,0.221756,97677.0,97670.0,0.0802]
[1736071396938,0.213756,97677.0,97670.0,0.0802]
[1736071397159,0.204766,97673.0,97670.0,0.0802]
[1736071397372,0.220756,97677.0,97670.0,0.0812]
[1736071397580,0.212756,97677.0,97670.0,0.0812]
[1736071397727,0.204758,97676.0,97670.0,0.0812]
[1736071398150,0.204758,97676.0,97670.0,0.0802]
[1736071398388,0.204758,97676.0,97670.0,0.0812]
[1736071398954,0.409517,97676.0,97670.0,0.0812]
[1736071399208,0.204768,97672.0,97670.0,0.0812]
[1736071399564,0.003,97673.0,97670.0,0.0812]
[1736071399780,0.003,97673.0,97670.0,0.0802]
[1736071400307,0.204767,97672.0,97670.0,0.0802]
[1736071400558,0.204767,97672.0,97670.0,0.0812]
[1736071400745,0.002,97672.0,97670.0,0.0812]
[1736071401064,0.204758,97676.0,97670.0,0.0802]
[1736071401285,0.204768,97672.0,97670.0,0.0802]
[1736071401501,0.204768,97672.0,97670.0,0.0812]
[1736071402692,0.204758,97676.0,97670.0,0.0812]
[1736071402907,0.204758,97676.0,97670.0,0.0802]
[1736071402908,0.002,97672.0,97670.0,0.0802]
[1736071403054,0.002,97672.0,97670.0,0.0812]
[1736071404090,0.204769,97671.0,97670.0,0.0812]
[1736071404295,0.204769,97671.0,97670.0,0.0802]
[1736071404676,0.204769,97671.0,97670.0,0.0822]
[1736071406156,0.206769,97671.0,97670.0,0.0802]
[1736071406609,0.002,97671.0,97670.0,0.0822]
[1736071408379,0.204763,97674.0,97670.0,0.0822]
[1736071408754,0.002,97671.0,97670.0,0.0822]
[1736071409592,0.204758,97676.0,97670.0,0.0802]
[1736071409790,0.003,97674.0,97670.0,0.0822]
[1736071410488,0.003,97674.0,97670.0,0.0802]
[1736071410724,0.002,97671.0,97670.0,0.0802]
[1736071410963,0.002,97671.0,97670.0,0.0812]
[1736071411158,0.002,97671.0,97670.0,0.12842377]
[1736071411368,0.002,97671.0,97670.0,0.33141009]
[1736071411575,0.002,97671.0,97670.0,0.33038632]
[1736071411785,0.0001708,97677.0,97672.0,0.1]
[1736071411950,0.0001708,97677.0,97673.0,0.45675165]
[1736071412159,0.0001708,97677.0,97675.0,0.20476]
[1736071412339,0.0001708,97677.0,97676.0,0.07682365]
[1736071413609,0.0001708,97677.0,97676.0,0.07782365]
[1736071413818,0.0001708,97677.0,97676.0,0.12402365]
[1736071415172,0.0041708,97677.0,97676.0,0.12402365]
[1736071422093,0.0041708,97677.0,97676.0,0.32800996]
[1736071422305,0.0041708,97677.0,97676.0,0.35892999]
[1736071429949,0.0041708,97677.0,97676.0,0.85892999]
[1736071435552,0.0041708,97677.0,97676.0,0.95892999]
[1736071436252,0.0041708,97677.0,97676.0,0.96604999]
[1736071437339,0.0041708,97677.0,97676.0,0.96504999]
[1736071437824,0.0011708,97677.0,97676.0,0.96704999]
[1736071437866,0.0021708,97677.0,97676.0,0.96904999]
[1736071438081,0.00066834,97677.0,97676.0,0.96904999]
[1736071440157,0.00083914,97677.0,97676.0,0.96904999]
[1736071440629,0.00083914,97677.0,97676.0,1.12055623]
[1736071444847,0.00083914,97677.0,97676.0,1.27055623]
[1736071446235,1.4e-07,97677.0,97676.0,1.37835623]
[1736071446770,0.0001708,97689.0,97687.0,0.633435]
[1736071447011,0.0001708,97689.0,97687.0,0.76936499]
[1736071447997,0.0001708,97689.0,97687.0,0.76943051]
[1736071448514,0.0011708,97688.0,97687.0,0.77143051]
[1736071449465,0.0011708,97688.0,97687.0,1.27543051]
[1736071449707,0.0011708,97688.0,97687.0,1.42543051]
[1736071449977,6e-07,97689.0,97688.0,0.35]
[1736071450214,6e-07,97689.0,97688.0,0.61062999]
[1736071450968,6e-07,97689.0,97688.0,0.62101275]
[1736071451469,6e-07,97689.0,97688.0,0.62601275]
[1736071452991,6e-07,97689.0,97688.0,0.63001275]
[1736071453481,6e-07,97689.0,97688.0,0.7811838]
[1736071456114,6e-07,97689.0,97688.0,2.2811838]
[1736071458117,0.0001708,97726.0,97703.0,0.3247]
[1736071458433,0.0001708,97726.0,97703.0,0.46774999]
[1736071460618,1.8051708,97704.0,97703.0,0.96774999]
[1736071460829,1.8051708,97704.0,97703.0,0.97074999]
[1736071461032,1.8001708,97704.0,97703.0,0.99138878]
[1736071461232,1.8001708,97704.0,97703.0,0.99538878]
[1736071462258,1.8001708,97704.0,97703.0,1.00547641]
[1736071463106,1.8001708,97704.0,97703.0,1.11327641]
[1736071463318,1.8001708,97704.0,97703.0,1.00547641]
[1736071463945,1.8001708,97704.0,97703.0,0.99835641]
[1736071469846,1.8001708,97704.0,97703.0,2.49835641]
[1736071470496,1.8001708,97704.0,97703.0,0.99835641]
[1736071471352,1.8001708,97704.0,97703.0,0.79835641]
[1736071473094,1.8001708,97704.0,97703.0,0.90615641]
[1736071473321,1.8001708,97704.0,97703.0,0.79835641]
[1736071475628,1.8001708,97704.0,97703.0,0.79844181]
[1736071478370,1.8001708,97704.0,97703.0,0.94844181]
[1736071478573,1.8001708,97704.0,97703.0,2.44844181]
[1736071478778,1.8001708,97704.0,97703.0,0.94844181]
[1736071480714,1.6568808,97704.0,97703.0,1.2161614]
[1736071480880,1.6159408,97704.0,97703.0,1.2161614]
[1736071481714,1.6159408,97704.0,97703.0,1.2131614]
[1736071481911,1.5750008,97704.0,97703.0,1.2131614]
[1736071482115,1.5135908,97704.0,97703.0,1.2141614]
[1736071482721,1.4931208,97704.0,97703.0,1.2141614]
[1736071483300,1.4726508,97704.0,97703.0,1.35181499]
[1736071483528,1.4521808,97704.0,97703.0,1.35181499]
[1736071483752,1.3907708,97704.0,97703.0,1.35181499]
[1736071483972,1.3703008,97704.0,97703.0,1.35881499]
[1736071484161,1.3498308,97704.0,97703.0,1.35881499]
[1736071485574,1.2679508,97704.0,97703.0,1.35881499]
[1736071485787,1.2474808,97704.0,97703.0,1.35881499]
[1736071486519,1.2474808,97704.0,97703.0,1.71116551]
[1736071486689,1.2474808,97704.0,97703.0,1.75211351]
[1736071487487,1.2271816,97704.0,97703.0,1.75211351]
[1736071487925,1.21513457,97704.0,97703.0,1.75211351]
[1736071488157,1.11278457,97704.0,97703.0,1.75211351]
[1736071489019,1.10993153,97704.0,97703.0,1.75211351]
[1736071493949,1.10993153,97704.0,97703.0,3.25211351]
[1736071495201,1.10993153,97704.0,97703.0,2.96077539]
[1736071495582,1.03315484,97704.0,97703.0,2.96077539]
[1736071497817,1.02555857,97704.0,97703.0,2.96077539]
[1736071499313,1.02555857,97704.0,97703.0,3.19011817]
[1736071499521,1.01987905,97704.0,97703.0,3.19011817]
[1736071500007,0.96869905,97704.0,97703.0,3.19011817]
[1736071501163,0.96869905,97704.0,97703.0,2.96077539]
[1736071502552,0.96869905,97704.0,97703.0,1.34315539]
[1736071502741,0.96869905,97704.0,97703.0,1.64869817]
[1736071502937,0.96869905,97704.0,97703.0,1.69439817]
[1736071503565,0.96869905,97704.0,97703.0,1.80219817]
[1736071503762,0.94822905,97704.0,97703.0,1.80219817]
[1736071506886,0.94822905,97704.0,97703.0,1.56577539]
[1736071507092,0.94822905,97704.0,97703.0,1.57285539]
[1736071507710,0.94822905,97704.0,97703.0,1.56577539]
[1736071507916,0.94822905,97704.0,97703.0,1.53190739]
[1736071508110,0.94822905,97704.0,97703.0,1.42410739]
[1736071509097,0.94822905,97704.0,97703.0,2.92410739]
[1736071509544,0.94822905,97704.0,97703.0,1.37132739]
[1736071509771,0.94822905,97704.0,97703.0,1.2184878]
[1736071510232,0.94822905,97704.0,97703.0,0.91202181]
[1736071510987,0.94822905,97704.0,97703.0,0.83582181]
[1736071511187,0.94822905,97704.0,97703.0,0.80387814]
[1736071511414,0.94822905,97704.0,97703.0,0.83584332]
[1736071512396,0.94822905,97704.0,97703.0,0.98633693]
[1736071513554,0.92105905,97704.0,97703.0,2.48633693]
[1736071513795,0.92105905,97704.0,97703.0,2.79318977]
[1736071515645,0.84428091,97704.0,97703.0,2.79318977]
[1736071520644,0.84428091,97704.0,97703.0,1.29318977]
[1736071522538,0.84428091,97704.0,97703.0,1.28610977]
[1736071522748,0.84428091,97704.0,97703.0,1.29318977]
[1736071523571,0.84428091,97704.0,97703.0,1.28610977]
[1736071523811,0.84428091,97704.0,97703.0,1.29318977]
[1736071527686,0.84428091,97704.0,97703.0,2.79318977]
[1736071530888,0.84428091,97704.0,97703.0,1.29318977]
[1736071532945,0.84428091,97704.0,97703.0,1.28610977]
[1736071533158,0.84428091,97704.0,97703.0,1.29318977]
[1736071535470,0.84428091,97704.0,97703.0,2.79318977]
[1736071536011,0.76749717,97704.0,97703.0,2.79318977]
[1736071536337,0.76749717,97704.0,97703.0,2.64269616]
[1736071537252,0.76749717,97704.0,97703.0,1.27209616]
[1736071537452,0.30319846,97704.0,97703.0,1.42911412]
[1736071537667,0.28272846,97704.0,97703.0,1.42911412]
[1736071537876,0.08067764,97704.0,97703.0,4.19581212]
[1736071538080,0.08067764,97704.0,97703.0,3.99702012]
[1736071538292,0.06562385,97704.0,97703.0,3.99702012]
[1736071538924,0.02468385,97704.0,97703.0,3.99002012]
[1736071539115,8.5e-07,97704.0,97703.0,3.98502012]
[1736071539337,8.5e-07,97704.0,97703.0,3.03291412]
[1736071539535,8.5e-07,97704.0,97703.0,3.03691412]
[1736071539953,8.5e-07,97704.0,97703.0,3.04091412]
[1736071540398,8.5e-07,97704.0,97703.0,3.04491412]
[1736071540751,8.5e-07,97704.0,97703.0,3.02491412]
[1736071541176,8.5e-07,97704.0,97703.0,3.03191412]
[1736071542180,8.5e-07,97704.0,97703.0,3.04091412]
[1736071542559,0.0001708,97726.0,97723.0,0.1]
[1736071542774,0.0001708,97726.0,97723.0,0.34366518]
[1736071543013,0.0001708,97726.0,97723.0,0.4476515]
[1736071543628,0.0001708,97726.0,97723.0,0.4406115]
[1736071543852,0.00026025,97724.0,97723.0,0.4586515]
[1736071544682,0.00026025,97724.0,97723.0,0.9586515]
[1736071544900,0.00026025,97724.0,97723.0,0.87258361]
[1736071545119,0.07556025,97724.0,97723.0,0.511]
[1736071545346,0.12166025,97724.0,97723.0,0.511]
[1736071545978,0.12166025,97724.0,97723.0,0.507]
[1736071546185,0.12166025,97724.0,97723.0,0.3759]
[1736071546186,0.12326025,97724.0,97723.0,0.3759]
[1736071546394,0.204674,97716.0,97712.0,0.22997533]
[1736071546608,0.023,97715.0,97701.0,0.09200112]
[1736071546811,0.13213246,97713.0,97701.0,0.09200112]
[1736071547012,0.02427942,97712.0,97701.0,0.09200112]
[1736071547358,0.023,97704.0,97701.0,0.09200112]
[1736071547576,0.02427943,97704.0,97697.0,0.13800168]
[1736071548251,0.02427943,97704.0,97691.0,0.204725]
[1736071548463,0.02427943,97704.0,97686.0,0.204737]
[1736071549274,0.02427943,97704.0,97689.0,0.0101727]
[1736071549478,0.02427943,97704.0,97690.0,0.204727]
[1736071549842,0.02927943,97704.0,97703.0,0.0010854]
[1736071550045,0.02727943,97704.0,97703.0,8.54e-05]
[1736071550247,0.02427943,97704.0,97703.0,0.5000854]
[1736071550444,0.025,97704.0,97703.0,0.5010854]
[1736071550670,0.028,97704.0,97703.0,0.5010854]
[1736071551921,0.026,97704.0,97703.0,0.5000854]
[1736071552126,0.008,97704.0,97703.0,0.5010854]
[1736071552478,0.004,97704.0,97703.0,0.5000854]
[1736071552693,0.009,97704.0,97703.0,0.5000854]
[1736071552871,0.005,97704.0,97703.0,0.5000854]
[1736071553085,0.023,97707.0,97703.0,0.5000854]
[1736071553086,0.023,97705.0,97703.0,0.5000854]
[1736071553291,0.002,97704.0,97703.0,0.5010854]
[1736071553517,0.009,97704.0,97703.0,0.5010854]
[1736071553688,0.007,97704.0,97703.0,0.5000854]
[1736071554938,0.011,97704.0,97703.0,0.5000854]
[1736071555148,0.012,97704.0,97703.0,0.5000854]
[1736071555409,0.001,97704.0,97703.0,0.60407172]
[1736071555572,0.005,97704.0,97703.0,0.60407172]
[1736071555785,0.004,97704.0,97703.0,0.62467694]
[1736071555990,0.005,97704.0,97703.0,0.62467694]
[1736071556190,0.005,97704.0,97703.0,0.60407172]
[1736071556409,0.001,97704.0,97703.0,0.60407172]
[1736071556618,0.0001708,97712.0,97711.0,0.204685]
[1736071558906,0.0001708,97712.0,97711.0,0.205685]
[1736071559535,0.0001708,97712.0,97711.0,0.30967132]
[1736071560345,0.0001708,97712.0,97711.0,0.31067132]
[1736071568678,0.0002108,97712.0,97711.0,0.31075672]
[1736071579702,0.0002108,97712.0,97711.0,0.0020854]
[1736071581692,0.0002108,97712.0,97711.0,0.0010854]
[1736071581913,0.0002108,97712.0,97711.0,8.54e-05]
[1736071582129,0.0002108,97712.0,97711.0,0.5010854]
[1736071582562,0.0002108,97712.0,97711.0,0.5000854]
[1736071582778,0.0012108,97712.0,97711.0,0.5000854]
[1736071583001,0.0262108,97712.0,97711.0,0.5000854]
[1736071583993,0.0252108,97712.0,97711.0,0.5000854]
[1736071584400,0.0302108,97712.0,97711.0,0.5010854]
[1736071584606,0.0232108,97712.0,97711.0,0.5000854]
[1736071584828,0.0252108,97712.0,97711.0,0.5000854]
[1736071585029,0.0332108,97712.0,97711.0,0.5010854]
[1736071585246,0.0332108,97712.0,97711.0,0.5000854]
[1736071585677,0.0402108,97712.0,97711.0,0.5010854]
[1736071585893,0.0382108,97712.0,97711.0,0.5010854]
[1736071586297,0.13159446,97712.0,97711.0,0.5010854]
[1736071586457,0.11659446,97712.0,97711.0,0.5000854]
[1736071587881,0.12159446,97712.0,97711.0,0.5010854]
[1736071588145,0.0232108,97712.0,97711.0,0.5000854]
[1736071588398,0.0252108,97712.0,97711.0,0.5010854]
[1736071588610,0.0322108,97712.0,97711.0,0.5010854]
[1736071588814,0.0232108,97712.0,97711.0,0.5000854]
[1736071589229,0.0312108,97712.0,97711.0,0.5010854]
[1736071591415,0.12264993,97712.0,97711.0,0.5010854]
[1736071592484,0.0312108,97712.0,97711.0,0.5010854]
[1736071596645,0.12264993,97712.0,97711.0,0.5010854]
[1736071599164,0.0312108,97712.0,97711.0,0.5010854]
[1736071601263,0.16862717,97712.0,97711.0,0.5010854]
[1736071602228,0.1699065,97712.0,97711.0,0.5010854]
[1736071602556,0.3745895,97712.0,97711.0,0.5010854]
[1736071602716,0.37331017,97712.0,97711.0,0.5010854]
[1736071603491,0.75722407,97712.0,97711.0,0.5010854]
[1736071606755,0.85722407,97712.0,97711.0,0.0010854]
[1736071607174,0.67400225,97712.0,97711.0,0.0010854]
[1736071608848,0.66800225,97712.0,97711.0,8.54e-05]
[1736071609043,0.66600225,97712.0,97711.0,8.54e-05]
[1736071609256,0.67300225,97712.0,97711.0,0.0010854]
[1736071609462,0.67300225,97712.0,97711.0,8.54e-05]
[1736071610015,0.68000225,97712.0,97711.0,0.0010854]
[1736071610381,0.68300225,97712.0,97711.0,0.0010854]
[1736071611003,0.67600225,97712.0,97711.0,8.54e-05]
[1736071611210,0.66900225,97712.0,97711.0,8.54e-05]
[1736071611392,0.67600225,97712.0,97711.0,0.0010854]
[1736071611593,0.67300225,97712.0,97711.0,0.0010854]
[1736071611813,0.67600225,97712.0,97711.0,0.0010854]
[1736071612462,0.77998857,97712.0,97711.0,0.0010854]
[1736071612660,1.02998857,97712.0,97711.0,0.0010854]
[1736071613572,1.02998857,97712.0,97688.0,0.0803854]
[1736071613573,0.554699,97704.0,97688.0,0.0803854]
[1736071613710,0.68168532,97704.0,97688.0,0.0803854]
[1736071614944,0.69068532,97704.0,97703.0,0.0010854]
[1736071615156,1.50184688,97704.0,97703.0,0.0010854]
[1736071615519,1.50584688,97704.0,97703.0,0.0010854]
[1736071615851,1.49684688,97704.0,97703.0,8.54e-05]
[1736071616055,1.50584688,97704.0,97703.0,8.54e-05]
[1736071616671,1.50184688,97704.0,97703.0,8.54e-05]
[1736071617097,1.50584688,97704.0,97703.0,8.54e-05]
[1736071618333,1.50184688,97704.0,97703.0,8.54e-05]
[1736071618605,1.49284688,97704.0,97703.0,8.54e-05]
[1736071618856,1.50584688,97704.0,97703.0,0.0010854]
[1736071623483,2.01759688,97704.0,97703.0,0.0010854]
[1736071625209,0.32772,97694.0,97693.0,0.0488]
[1736071625442,0.22772,97694.0,97693.0,0.0488]
[1736071625641,0.22772,97694.0,97693.0,0.1291]
[1736071625846,0.32772,97694.0,97693.0,0.1291]
[1736071626365,0.22776943,97694.0,97693.0,0.1291]
[1736071626944,0.46492078,97694.0,97693.0,0.1291]
[1736071627314,0.37092078,97694.0,97693.0,0.1301]
[1736071627845,0.23376943,97694.0,97693.0,0.1301]
[1736071628047,0.23576943,97694.0,97693.0,0.1301]
[1736071629956,0.37295326,97694.0,97693.0,0.1301]
[1736071630330,0.88470326,97694.0,97693.0,0.1301]
[1736071630977,0.74751943,97694.0,97693.0,0.1301]
[1736071631785,1.08506828,97694.0,97693.0,0.1301]
[1736071633391,1.18506828,97694.0,97693.0,0.0813]
[1736071635296,1.18506828,97694.0,97693.0,0.001]
[1736071635526,1.08506828,97694.0,97693.0,0.001]
[1736071635758,1.18506828,97694.0,97693.0,0.001]
[1736071636404,1.36795165,97694.0,97693.0,0.001]
[1736071637023,1.57193797,97694.0,97693.0,0.001]
[1736071637220,1.3890546,97694.0,97693.0,0.001]
[1736071637622,0.023,97693.0,97688.0,8.54e-05]
[1736071637780,0.227731,97689.0,97688.0,8.54e-05]
[1736071637978,0.84346732,97689.0,97688.0,8.54e-05]
[1736071638834,0.84346732,97689.0,97688.0,0.0010854]
[1736071639310,1.40960515,97689.0,97688.0,0.0010854]
[1736071639878,1.40960515,97689.0,97688.0,8.54e-05]
[1736071640293,1.41860515,97689.0,97688.0,8.54e-05]
[1736071640490,1.41260515,97689.0,97688.0,8.54e-05]
[1736071640892,1.42160515,97689.0,97688.0,8.54e-05]
[1736071641096,1.40960515,97689.0,97688.0,8.54e-05]
[1736071641296,1.51260515,97689.0,97688.0,8.54e-05]
[1736071641491,1.52160515,97689.0,97688.0,8.54e-05]
[1736071641694,1.41761883,97689.0,97688.0,8.54e-05]
[1736071642402,1.08988783,97689.0,97688.0,0.0770854]
[1736071642562,0.52375,97689.0,97688.0,0.0770854]
[1736071643117,0.51475,97689.0,97688.0,0.0770854]
[1736071643346,0.54675,97689.0,97688.0,0.0770854]
[1736071643548,0.52075,97689.0,97688.0,0.0770854]
[1736071643775,0.53775,97689.0,97688.0,0.0770854]